bitfinex/quotes_ETHUSD_20240716
["timestamp","ask_amount","ask_price","bid_price","bid_amount"]
[1721106004894,0.6291404,3467.0,3466.4,5.17081]
[1721106005658,0.6291404,3467.0,3466.4,2.286]
[1721106006681,0.6291404,3467.0,3466.4,5.17083]
[1721106008158,0.62917709,3466.9,3466.4,5.17083]
[1721106008397,0.62917709,3466.9,3466.4,5.976419]
[1721106009569,0.62917709,3466.8,3466.4,5.976419]
[1721106009794,0.62917709,3466.7,3466.4,5.976419]
[1721106009999,0.62917709,3466.6,3466.4,5.976419]
[1721106010295,1.50231303,3467.1,3466.4,5.976419]
[1721106010494,0.62928525,3467.0,3466.4,5.17083]
[1721106010755,2.13159828,3467.0,3466.4,5.17083]
[1721106010876,0.62928525,3466.9,3466.4,5.17083]
[1721106011076,1.50231303,3467.1,3466.4,5.17083]
[1721106011077,0.62928525,3466.8,3466.4,5.17083]
[1721106011376,1.50301408,3467.1,3466.4,5.17083]
[1721106011575,0.62938258,3467.0,3466.4,5.17083]
[1721106011910,0.62951192,3466.9,3466.4,5.17083]
[1721106012122,0.62951192,3466.8,3466.4,5.976413]
[1721106012264,0.62951192,3466.7,3466.4,5.976413]
[1721106012469,1.50301408,3467.1,3466.4,5.976413]
[1721106012470,0.62951192,3466.6,3466.4,5.976413]
[1721106012793,1.50301408,3467.1,3466.4,5.976413]
[1721106012971,0.62953766,3467.0,3466.4,5.17083]
[1721106013172,2.13255174,3467.0,3466.4,5.17083]
[1721106013371,0.62953766,3466.9,3466.4,5.17083]
[1721106013803,2.3541,3466.8,3466.3,2.88491]
[1721106014010,0.62953766,3466.7,3466.1,2.88503]
[1721106014171,0.62953766,3466.7,3466.2,3.0]
[1721106014372,0.62953766,3466.7,3466.2,2.88494]
[1721106014592,0.62982846,3466.6,3466.0,3.0]
[1721106014905,0.62982846,3466.5,3466.2,2.885]
[1721106015204,0.62982846,3466.4,3466.2,2.885]
[1721106015516,1.50403774,3466.9,3466.3,5.93806]
[1721106015669,0.62995883,3466.8,3466.3,5.93806]
[1721106016395,0.62995883,3466.8,3466.3,5.34956]
[1721106017816,2.88434,3467.0,3466.3,5.34956]
[1721106017986,2.13439112,3466.9,3466.3,5.34956]
[1721106018194,0.63003088,3466.8,3466.1,2.88501]
[1721106018388,5.01890112,3466.8,3466.2,3.0]
[1721106018690,0.63003088,3466.7,3466.2,3.0]
[1721106021120,1.50436024,3466.7,3466.0,3.0]
[1721106021296,0.63031726,3466.6,3466.1,2.88505]
[1721106021702,0.63031726,3466.5,3466.1,2.88505]
[1721106021902,0.63031726,3466.4,3466.1,2.88505]
[1721106022111,4.38887024,3466.8,3466.1,2.88505]
[1721106022112,2.88451,3466.8,3466.1,2.88505]
[1721106022296,0.63031793,3466.7,3466.1,2.88505]
[1721106022634,0.63031793,3466.7,3466.0,5.88516]
[1721106022804,0.63031793,3466.6,3466.2,2.88499]
[1721106023006,0.63056853,3466.5,3466.4,2.2714]
[1721106023439,0.63056853,3466.9,3466.4,2.2714]
[1721106023946,0.63056853,3466.9,3466.4,5.15623]
[1721106024152,0.63056853,3466.8,3466.7,2.88457]
[1721106024446,1.50538162,3467.2,3466.7,2.88457]
[1721106024631,0.63068577,3467.1,3466.7,2.88457]
[1721106024806,1.50538162,3467.2,3466.7,2.88457]
[1721106025007,0.63072229,3467.1,3466.7,2.88457]
[1721106025441,0.63072229,3467.1,3466.7,0.8556333]
[1721106025631,0.63072229,3467.1,3466.8,2.8845]
[1721106025829,0.63072229,3467.0,3466.8,2.8845]
[1721106026145,0.63072229,3466.9,3466.8,2.8845]
[1721106026303,0.63102121,3467.3,3466.7,0.8556333]
[1721106026508,0.63102121,3467.2,3466.5,2.2714]
[1721106026704,1.50538162,3467.7,3467.1,5.15565]
[1721106026941,0.63105098,3467.6,3467.1,5.15565]
[1721106027115,0.63105098,3467.5,3467.1,5.15565]
[1721106027324,0.63105098,3467.4,3467.1,5.15565]
[1721106027526,2.88359,3467.9,3467.1,5.15565]
[1721106027705,2.13769826,3467.8,3467.1,5.15565]
[1721106027908,0.63119867,3467.7,3467.1,5.15565]
[1721106030257,0.63119867,3467.6,3467.1,5.15565]
[1721106030426,0.63119867,3467.5,3467.1,5.15565]
[1721106030609,0.63119867,3467.4,3467.1,5.15565]
[1721106030839,2.88359,3467.9,3467.1,5.15565]
[1721106031125,0.63116517,3467.8,3467.2,2.88415]
[1721106031319,0.63116517,3467.8,3467.2,5.76826]
[1721106031852,0.63116517,3467.7,3467.3,2.88406]
[1721106032008,0.63116517,3467.6,3467.3,2.88406]
[1721106032211,2.8835,3468.0,3467.3,2.88406]
[1721106032425,0.6312522,3467.9,3467.3,2.88406]
[1721106034161,0.63101936,3467.8,3467.3,2.88406]
[1721106034528,0.63101492,3467.7,3467.3,2.88406]
[1721106034727,0.63096623,3467.6,3467.0,2.88433]
[1721106034927,0.63096623,3467.5,3467.1,3.0]
[1721106035138,2.88368,3467.8,3467.1,3.0]
[1721106035328,0.63091469,3467.7,3467.1,3.0]
[1721106037391,0.63091469,3467.7,3467.1,5.88424]
[1721106037596,0.63135128,3467.6,3467.1,5.88424]
[1721106037798,0.63135128,3467.5,3467.1,5.88424]
[1721106038101,3.95825906,3467.8,3467.1,5.88424]
[1721106038258,0.63136396,3467.7,3467.1,5.88424]
[1721106039181,0.63136396,3467.6,3467.2,2.3388]
[1721106039383,0.63136396,3467.5,3467.2,2.3388]
[1721106039703,2.88359,3467.9,3467.2,2.3388]
[1721106039992,1.35873385,3467.8,3467.2,2.3388]
[1721106040159,0.63151829,3467.7,3467.2,2.3388]
[1721106040358,0.63151829,3467.7,3467.1,2.88424]
[1721106040899,0.63138321,3467.6,3467.1,2.88424]
[1721106041068,0.63138321,3467.5,3467.1,2.88424]
[1721106041273,0.63138321,3467.4,3467.1,2.88424]
[1721106041467,5.99949556,3467.8,3467.1,2.88424]
[1721106041701,1.38168122,3467.7,3467.1,2.88424]
[1721106041855,0.63123675,3467.6,3467.1,2.88424]
[1721106042052,0.63123675,3467.5,3467.1,2.88424]
[1721106042285,2.88368,3467.8,3467.1,2.88424]
[1721106042497,0.63129844,3467.7,3467.1,2.88424]
[1721106043261,1.13329119,3467.7,3467.1,2.88424]
[1721106043456,0.63129844,3467.6,3467.1,2.88424]
[1721106044284,0.63110524,3467.5,3467.1,2.88424]
[1721106044482,0.50199275,3467.7,3467.1,2.88424]
[1721106044999,0.63109708,3467.6,3467.1,2.88424]
[1721106045360,0.63109708,3467.5,3467.1,2.88424]
[1721106045558,2.88368,3467.8,3467.1,2.88424]
[1721106045796,0.6310976,3467.7,3467.1,2.88424]
[1721106047471,3.84967232,3467.8,3467.1,2.88424]
[1721106047676,0.63139427,3467.7,3467.1,2.88424]
[1721106051013,0.63131734,3467.6,3467.1,2.88424]
[1721106051223,0.63131734,3467.5,3467.1,2.88424]
[1721106051525,3.84967232,3467.8,3467.1,2.88424]
[1721106051821,0.63133941,3467.7,3467.1,2.88424]
[1721106054233,0.35642776,3467.6,3467.1,2.88424]
[1721106054404,0.63164435,3467.5,3467.1,2.88424]
[1721106055230,3.84967232,3467.8,3467.1,2.88424]
[1721106055396,0.63166851,3467.7,3467.1,2.88424]
[1721106057610,0.63168691,3467.6,3467.1,2.88424]
[1721106057826,0.63168691,3467.5,3467.1,2.88424]
[1721106057997,2.88368,3467.8,3467.1,2.88424]
[1721106058197,0.63162382,3467.7,3467.1,2.88424]
[1721106059517,0.63162382,3467.7,3467.2,2.4288]
[1721106060799,0.63162452,3467.6,3467.2,2.4288]
[1721106061029,0.63162452,3467.5,3467.2,2.4288]
[1721106061255,2.88368,3467.8,3467.2,2.4288]
[1721106061444,0.63157256,3467.7,3467.2,2.4288]
[1721106062667,2.4337,3467.6,3466.7,7.27]
[1721106062976,2.88409,3467.3,3466.7,7.27]
[1721106063177,0.63157256,3467.2,3466.7,7.27]
[1721106063679,0.63176753,3467.1,3466.7,7.27]
[1721106063832,0.63176753,3467.0,3466.7,7.27]
[1721106064031,0.63176753,3467.0,3466.5,2.4096]
[1721106064237,0.63176753,3467.0,3466.5,5.4096]
[1721106064992,0.63176753,3467.0,3466.4,2.88483]
[1721106066844,0.63177754,3466.9,3466.4,2.88483]
[1721106067146,0.63177754,3466.8,3466.4,2.88483]
[1721106067346,0.63177754,3466.7,3466.2,22.43495]
[1721106067551,0.63177754,3466.6,3466.3,3.0]
[1721106067852,2.3048,3466.9,3466.3,3.0]
[1721106068074,0.63203865,3466.8,3466.3,3.0]
[1721106068653,0.63203865,3466.8,3466.3,5.88489]
[1721106069348,0.63203865,3466.7,3466.4,2.88482]
[1721106069550,4.39085281,3467.2,3466.4,2.88482]
[1721106069747,0.63208812,3467.1,3466.4,2.88482]
[1721106069955,0.63208812,3467.1,3466.5,2.88469]
[1721106070175,0.63214906,3467.0,3466.6,2.2948]
[1721106070495,2.88409,3467.3,3466.6,2.2948]
[1721106070652,0.63218127,3467.2,3466.6,2.2948]
[1721106071186,2.1402184,3467.2,3466.6,2.2948]
[1721106071371,0.63218127,3467.1,3466.6,2.2948]
[1721106073167,0.63211319,3467.0,3466.6,2.2948]
[1721106073363,0.63216397,3466.9,3466.6,2.2948]
[1721106073573,0.63216397,3466.8,3466.6,2.2948]
[1721106073895,1.50774894,3467.2,3466.6,2.2948]
[1721106074066,0.63215109,3467.1,3466.6,2.2948]
[1721106074393,0.63215109,3467.1,3466.6,5.17946]
[1721106074691,0.63215109,3467.0,3466.6,5.17946]
[1721106074871,0.63215109,3466.9,3466.6,6.285888]
[1721106075072,4.39174894,3467.4,3466.6,6.285888]
[1721106075252,0.63216011,3467.3,3466.6,5.17946]
[1721106076783,2.13967786,3467.2,3466.6,5.17946]
[1721106076958,0.63210874,3467.1,3466.6,5.17946]
[1721106077803,0.63210874,3467.0,3466.6,5.17946]
[1721106077982,0.63210874,3466.9,3466.6,5.17946]
[1721106078186,0.63210874,3466.8,3466.6,5.17946]
[1721106078358,0.63210874,3466.7,3466.6,5.17946]
[1721106078988,0.63210874,3467.1,3466.6,5.17946]
[1721106079192,0.63210874,3467.0,3466.6,5.17946]
[1721106079398,0.63210874,3466.9,3466.6,5.17946]
[1721106079729,0.63210874,3466.8,3466.6,5.17946]
[1721106080021,2.4554,3467.0,3466.4,2.88476]
[1721106080226,0.63218973,3466.9,3466.4,2.88476]
[1721106080378,0.63217881,3466.8,3466.4,2.88476]
[1721106080584,0.63217881,3466.7,3466.4,2.88476]
[1721106080915,0.63217881,3466.6,3466.4,2.88476]
[1721106081104,2.4554,3467.0,3466.4,2.88476]
[1721106081307,0.63218811,3466.9,3466.3,3.0]
[1721106082691,0.63218811,3466.9,3466.3,5.88491]
[1721106083097,0.63232821,3466.8,3466.3,5.88491]
[1721106083297,0.63232743,3466.7,3466.3,5.88491]
[1721106083485,0.63232743,3466.6,3466.3,5.88491]
[1721106083819,2.4554,3467.0,3466.3,5.88491]
[1721106084038,0.63231323,3466.9,3466.3,5.88491]
[1721106086500,0.63231323,3466.9,3466.3,3.0]
[1721106086501,1.38029283,3466.9,3466.3,3.0]
[1721106086696,0.63240304,3466.8,3466.2,5.2948]
[1721106087000,0.63240304,3466.8,3466.2,8.17977]
[1721106090136,2.88442,3466.9,3466.2,8.17977]
[1721106090137,0.63243556,3466.7,3466.2,8.17977]
[1721106090321,0.63243556,3466.6,3466.2,8.17977]
[1721106090634,1.50783983,3467.2,3466.4,2.88476]
[1721106090845,0.63239664,3467.1,3466.4,2.88476]
[1721106091001,0.63239664,3467.0,3466.5,2.88473]
[1721106091341,0.63239664,3466.9,3466.5,2.88473]
[1721106091496,0.63243236,3466.8,3466.5,2.88473]
[1721106091697,4.39198983,3467.3,3466.5,2.88473]
[1721106091918,1.59223257,3467.2,3466.5,2.88473]
[1721106092138,0.63243159,3467.1,3466.5,2.88473]
[1721106092349,3.82993983,3467.4,3466.9,2.88442]
[1721106092350,0.63243159,3467.0,3466.9,2.88442]
[1721106092647,0.63243159,3467.0,3466.7,2.88457]
[1721106092957,0.63243159,3466.9,3466.7,2.88457]
[1721106093246,0.70349578,3467.5,3466.8,2.8845]
[1721106093559,1.50814608,3467.3,3466.8,2.8845]
[1721106093730,0.63244355,3467.2,3466.8,2.8845]
[1721106094047,0.63244355,3467.1,3466.8,2.8845]
[1721106094253,0.63244355,3467.0,3466.8,2.8845]
[1721106094454,0.63244355,3466.9,3466.8,2.8845]
[1721106094660,2.88385,3467.6,3466.8,2.8845]
[1721106094855,1.50806798,3467.4,3466.8,2.8845]
[1721106095023,0.63236385,3467.3,3466.8,2.8845]
[1721106096926,0.63222058,3467.2,3466.8,2.8845]
[1721106097457,0.63222058,3467.1,3466.8,2.8845]
[1721106097661,0.63222058,3467.0,3466.6,5.22156]
[1721106097846,0.63222058,3466.9,3466.6,5.22156]
[1721106098018,2.4128,3467.3,3466.6,5.22156]
[1721106098219,1.36491564,3467.2,3466.6,5.22156]
[1721106098491,0.63219769,3467.1,3466.6,5.22156]
[1721106098829,0.63219769,3467.0,3466.6,5.22156]
[1721106099145,0.63219769,3466.9,3466.6,5.22156]
[1721106099320,0.63219769,3466.8,3466.6,5.22156]
[1721106099521,3.92061448,3467.3,3466.6,5.22156]
[1721106099716,1.36495733,3467.2,3466.6,5.22156]
[1721106099961,0.63223938,3467.1,3466.6,5.22156]
[1721106100146,0.63225324,3467.0,3466.6,5.22156]
[1721106100347,0.63225324,3466.9,3466.6,5.22156]
[1721106100554,0.63226226,3466.8,3466.6,5.22156]
[1721106100720,1.50847346,3467.3,3466.6,5.22156]
[1721106101051,0.63226258,3467.2,3466.6,5.22156]
[1721106102381,1.50847346,3467.4,3466.6,5.22156]
[1721106102382,0.63226258,3467.1,3466.7,2.88458]
[1721106102675,0.63226258,3467.0,3466.8,2.88449]
[1721106102843,0.63226258,3466.9,3466.8,2.88449]
[1721106103046,0.63222615,3467.1,3466.8,2.88449]
[1721106103444,0.63226111,3467.0,3466.8,2.88449]
[1721106103651,0.63226111,3466.9,3466.8,2.88449]
[1721106103969,0.63226111,3467.1,3466.8,2.88449]
[1721106104473,2.14120589,3467.1,3466.8,2.88449]
[1721106104656,0.63226111,3467.0,3466.8,2.88449]
[1721106105777,0.63226111,3466.9,3466.8,2.88449]
[1721106106017,0.63226111,3467.1,3466.8,2.88449]
[1721106106751,0.63264968,3467.0,3466.8,2.88449]
[1721106106952,0.63264968,3466.9,3466.8,2.88449]
[1721106107263,0.63264968,3467.2,3466.8,2.88449]
[1721106108476,2.14309937,3467.2,3466.8,2.88449]
[1721106108773,0.63264968,3467.1,3466.8,2.88449]
[1721106109273,2.14309937,3467.1,3466.8,2.88449]
[1721106109481,0.63264968,3467.0,3466.8,2.88449]
[1721106109985,0.63255496,3466.9,3466.8,2.88449]
[1721106110472,0.632559,3467.1,3466.8,2.88449]
[1721106111334,0.632559,3467.0,3466.8,2.88449]
[1721106111538,0.632559,3466.9,3466.8,2.88449]
[1721106112882,0.632559,3466.9,3466.6,2.3369]
[1721106113175,0.63237725,3466.8,3466.7,2.88455]
[1721106113376,0.63238317,3466.8,3466.7,2.88455]
[1721106113676,1.51008217,3467.2,3466.7,2.88455]
[1721106113975,0.63238317,3467.1,3466.7,2.88455]
[1721106116562,1.51008217,3467.2,3466.7,2.88455]
[1721106116563,1.51091044,3467.2,3466.7,2.88455]
[1721106116767,0.63272966,3467.1,3466.7,2.88455]
[1721106119959,2.88392,3467.5,3466.7,2.88455]
[1721106120161,1.51081791,3467.3,3466.7,2.88455]
[1721106120360,0.63270414,3467.2,3466.7,2.88455]
[1721106121757,0.63270414,3467.2,3467.1,2.3979]
[1721106121961,1.51080042,3467.9,3467.7,2.88374]
[1721106122193,2.95092315,3468.9,3467.7,2.88374]
[1721106122194,1.51080042,3468.4,3467.8,5.28153]
[1721106122359,2.88269,3469.0,3467.8,5.28153]
[1721106122360,0.63300173,3468.3,3468.0,2.88344]
[1721106122554,0.63300173,3468.2,3468.0,2.88344]
[1721106122759,0.63300173,3468.1,3468.0,2.88344]
[1721106123054,5.31406,3468.9,3468.1,2.8834]
[1721106123273,2.67433613,3468.8,3468.1,2.8834]
[1721106123490,0.63304759,3468.7,3468.1,2.8834]
[1721106124093,0.63304759,3468.7,3467.9,2.88358]
[1721106124390,0.63304759,3468.7,3468.0,2.88349]
[1721106125499,0.531406,3468.8,3468.0,2.88349]
[1721106125715,0.63322449,3468.7,3468.1,2.88342]
[1721106127615,0.63322449,3468.6,3468.1,2.88342]
[1721106127786,5.31406,3468.9,3468.1,2.88342]
[1721106127985,0.63320129,3468.8,3468.1,2.88342]
[1721106128386,0.63320129,3468.8,3468.1,3.699919]
[1721106130023,0.63320129,3468.8,3468.3,2.498]
[1721106130173,2.88243,3469.3,3468.3,2.498]
[1721106130373,0.63325736,3469.2,3468.3,2.498]
[1721106130582,0.63325736,3469.2,3468.4,2.8831]
[1721106130805,0.63325736,3469.2,3468.5,0.55074024]
[1721106130986,0.63325736,3469.2,3468.5,3.43380024]
[1721106131189,2.88268,3469.0,3468.2,5.88333]
[1721106131374,5.21678,3469.0,3468.2,5.88333]
[1721106134115,5.21678,3469.0,3468.2,3.0]
[1721106134116,2.88275,3468.9,3468.2,3.0]
[1721106134283,2.88275,3468.9,3468.1,5.88335]
[1721106135313,2.88275,3468.9,3468.1,3.0]
[1721106135314,5.76557,3468.9,3468.1,3.0]
[1721106135524,2.88299,3468.7,3468.0,3.0]
[1721106135684,2.88299,3468.7,3467.9,5.88358]
[1721106136225,2.88299,3468.7,3467.9,3.0]
[1721106136376,2.88299,3468.7,3467.9,2.88358]
[1721106136576,2.88299,3468.7,3468.0,3.0]
[1721106137218,3.8289707,3468.7,3468.0,3.0]
[1721106139031,3.8289707,3468.7,3468.0,5.8835]
[1721106139482,2.88299,3468.7,3468.0,5.8835]
[1721106140510,2.88307,3468.6,3467.7,7.27]
[1721106140836,2.4283,3468.3,3467.6,2.8838]
[1721106141717,2.88342,3468.1,3467.3,13.03808]
[1721106141929,2.88342,3468.1,3467.3,2.88401]
[1721106142089,2.88342,3468.1,3467.4,3.0]
[1721106143325,2.88351,3468.0,3467.4,3.0]
[1721106143647,2.88351,3468.0,3467.2,5.88414]
[1721106144813,2.88351,3468.0,3467.3,2.88408]
[1721106145013,2.88351,3468.0,3467.4,3.0]
[1721106145333,2.88344,3468.1,3467.4,3.0]
[1721106145891,2.88344,3468.1,3467.4,5.88399]
[1721106146288,5.3116,3468.3,3467.5,2.2547]
[1721106146529,2.4283,3468.3,3467.5,5.13855]
[1721106147304,2.3742,3468.7,3467.7,2.88371]
[1721106147517,1.18211807,3468.6,3467.7,2.88371]
[1721106147749,0.55,3468.6,3467.7,2.88371]
[1721106147901,0.29242,3468.5,3467.7,2.88371]
[1721106148329,3.17551,3468.5,3467.7,2.88371]
[1721106150623,0.55,3468.6,3467.8,2.88366]
[1721106150818,2.8828,3468.9,3468.0,2.2557]
[1721106151032,0.63203074,3468.8,3468.0,5.13914]
[1721106151239,2.8828,3468.9,3468.0,5.13914]
[1721106152055,2.88284,3468.8,3468.0,5.13914]
[1721106152351,2.88284,3468.8,3468.1,2.8834]
[1721106152516,0.63202942,3468.7,3468.1,2.8834]
[1721106152953,3.415181,3469.0,3468.1,2.8834]
[1721106153249,1.18202496,3468.9,3468.1,2.8834]
[1721106153426,0.63202496,3468.8,3468.1,3.685668]
[1721106153627,5.32481,3469.1,3468.1,0.802268]
[1721106153930,5.32481,3469.1,3468.3,2.88324]
[1721106153931,0.55,3469.0,3468.3,2.88324]
[1721106154459,3.77149066,3469.5,3468.4,2.88311]
[1721106154616,4.47952964,3469.4,3468.4,2.88311]
[1721106154817,0.63182257,3469.3,3468.5,2.397]
[1721106156340,0.63182257,3469.3,3468.6,2.88298]
[1721106157955,3.51426257,3469.3,3468.6,2.88298]
[1721106158165,2.88244,3469.3,3468.6,2.88298]
[1721106158460,3.78227871,3469.3,3468.6,2.88298]
[1721106159462,2.88244,3469.3,3468.6,2.88298]
[1721106160465,5.15069,3469.5,3468.7,2.484]
[1721106160627,5.15066,3469.5,3468.7,5.36691]
[1721106161121,2.2684,3469.5,3468.7,5.36691]
[1721106162162,0.63137578,3469.4,3468.7,5.36691]
[1721106162358,0.63137578,3469.4,3468.7,6.17167124]
[1721106162564,0.63137578,3469.4,3468.8,2.88282]
[1721106164928,0.63136467,3469.3,3468.8,2.88282]
[1721106165126,0.63136467,3469.2,3468.8,2.88282]
[1721106165425,2.2684,3469.5,3468.8,2.88282]
[1721106165735,0.63134357,3469.4,3468.8,2.88282]
[1721106168444,2.2684,3469.5,3468.8,2.88282]
[1721106168771,0.63093853,3469.4,3468.8,2.88282]
[1721106169070,0.63093853,3469.3,3468.8,2.88282]
[1721106169269,0.63093853,3469.2,3468.8,2.88282]
[1721106169456,4.3863724,3469.6,3468.8,2.88282]
[1721106169773,1.18089223,3469.5,3468.8,2.88282]
[1721106169974,0.63089223,3469.4,3468.8,2.88282]
[1721106171843,0.63089223,3469.4,3469.0,2.3526]
[1721106172067,1.50373041,3469.9,3469.1,2.88258]
[1721106172258,1.18091887,3469.8,3469.1,2.88258]
[1721106172467,0.63093972,3469.7,3469.1,2.88258]
[1721106172996,0.63093972,3469.7,3469.2,2.88243]
[1721106173156,4.38541041,3470.2,3469.4,2.3526]
[1721106173479,0.63103392,3470.1,3469.4,5.23491]
[1721106173789,1.64875035,3470.1,3469.4,5.23491]
[1721106174086,2.2792,3470.3,3469.4,5.23491]
[1721106174087,0.63103392,3470.0,3469.5,2.88218]
[1721106174271,5.16079,3470.3,3469.5,2.88218]
[1721106174461,0.63106441,3470.2,3469.5,2.88218]
[1721106175183,0.63102309,3470.1,3469.5,2.88218]
[1721106175355,0.63101458,3470.0,3469.5,2.88218]
[1721106175547,2.88167,3470.2,3469.5,2.88218]
[1721106175748,0.63101657,3470.1,3469.5,2.88218]
[1721106177379,0.63101657,3470.1,3469.5,3.707162]
[1721106177548,5.1608,3470.3,3469.5,3.707162]
[1721106177752,0.63101269,3470.2,3469.5,3.707162]
[1721106178681,2.8816,3470.3,3469.5,3.707162]
[1721106178875,0.63096802,3470.2,3469.5,3.707162]
[1721106179185,2.8816,3470.3,3469.5,3.707162]
[1721106180284,2.8816,3470.3,3469.4,2.3526]
[1721106180588,3.51264491,3470.2,3469.4,5.23493]
[1721106180759,2.88167,3470.2,3469.4,5.23493]
[1721106181298,2.88167,3470.2,3469.5,2.88225]
[1721106181452,2.88167,3470.2,3469.5,3.993984]
[1721106182180,2.88167,3470.2,3469.5,1.111734]
[1721106183391,2.88167,3470.2,3469.5,3.993984]
[1721106184949,2.88167,3470.2,3469.5,1.111734]
[1721106185158,2.88167,3470.2,3469.4,2.3526]
[1721106185358,2.88167,3470.2,3469.4,5.23487]
[1721106185751,2.3321,3470.1,3469.4,2.88227]
[1721106186089,2.3321,3470.1,3469.5,2.88225]
[1721106186753,2.88167,3470.2,3469.6,2.3474]
[1721106186953,2.88151,3470.4,3469.6,5.752535]
[1721106190678,5.32784,3470.5,3469.7,2.88207]
[1721106190880,0.55,3470.4,3469.7,2.88207]
[1721106191593,3.98223007,3471.1,3470.2,2.36]
[1721106191893,3.98223007,3471.1,3470.3,0.236]
[1721106191894,2.4813,3471.1,3470.3,0.236]
[1721106192188,2.4813,3471.1,3470.5,2.88142]
[1721106194215,5.36223,3471.1,3470.5,2.88142]
[1721106195079,5.36223,3471.1,3470.2,5.24167]
[1721106195284,2.88124,3470.8,3470.0,2.88182]
[1721106195611,1.50143832,3471.6,3470.4,2.88148]
[1721106195612,2.88091,3471.2,3470.4,2.88148]
[1721106196184,2.3317,3471.3,3470.4,2.88148]
[1721106196398,2.88116,3470.9,3470.2,2.3929]
[1721106197408,2.88119,3470.8,3470.2,2.3929]
[1721106198220,2.88106,3471.0,3470.2,5.27457]
[1721106198394,2.88106,3471.0,3470.3,0.49135724]
[1721106198395,0.55,3470.9,3470.3,0.49135724]
[1721106198595,2.88093,3471.1,3470.4,2.8815]
[1721106200005,2.88093,3471.1,3470.3,3.37293724]
[1721106201906,2.88102,3471.0,3470.3,3.37293724]
[1721106202119,2.4609,3470.8,3470.1,5.88174]
[1721106203290,2.4609,3470.8,3470.2,2.88167]
[1721106203901,5.34188,3471.1,3470.3,2.88158]
[1721106204096,5.34188,3471.1,3470.4,0.588158]
[1721106205219,2.88098,3471.1,3470.5,2.3955]
[1721106205894,5.16401,3471.3,3470.5,2.3955]
[1721106206277,5.16401,3471.3,3470.6,2.88134]
[1721106212593,2.88081,3471.3,3470.6,2.88134]
[1721106212942,2.88081,3471.3,3470.7,0.8746508]
[1721106213822,5.31699,3471.5,3470.7,3.7559008]
[1721106214189,2.88059,3471.5,3470.7,3.7559008]
[1721106215295,5.31683,3471.7,3470.7,0.8746508]
[1721106215296,2.88051,3471.6,3470.7,0.8746508]
[1721106215623,2.88051,3471.6,3470.7,3.8746508]
[1721106215797,2.88051,3471.6,3470.8,3.61348844]
[1721106216004,2.88051,3471.6,3470.8,0.73237844]
[1721106217291,2.88051,3471.6,3470.9,2.88109]
[1721106218229,2.88036,3471.8,3471.1,2.2673]
[1721106218386,4.38491081,3471.8,3471.1,2.2673]
[1721106218789,2.88036,3471.8,3471.1,2.2673]
[1721106218992,2.88044,3471.7,3471.2,0.802937]
[1721106219223,2.88044,3471.7,3471.0,2.88098]
[1721106222623,2.88053,3471.6,3470.9,2.2673]
[1721106222998,2.88053,3471.6,3470.9,5.14837]
[1721106223199,2.8804,3471.8,3471.0,2.88099]
[1721106223549,4.41470964,3471.9,3471.0,2.88099]
[1721106223550,2.9095881,3471.9,3471.1,3.576206]
[1721106223834,2.9095881,3471.9,3471.1,3.63381854]
[1721106224010,2.9095881,3471.9,3471.2,5.31294]
[1721106227202,2.9095881,3471.9,3471.2,2.4321]
[1721106227408,2.9095881,3471.9,3471.2,0.8889296]
[1721106227409,2.88035,3471.8,3471.2,0.8889296]
[1721106227913,2.9095881,3471.9,3471.1,3.0]
[1721106228098,2.9095881,3471.9,3470.8,2.3053]
[1721106228099,2.3706,3471.8,3470.8,2.3053]
[1721106228300,2.3706,3471.8,3470.7,7.27]
[1721106228301,2.88094,3471.1,3470.7,7.27]
[1721106231725,2.88081,3471.3,3470.7,7.27]
[1721106232451,2.8807,3471.4,3470.7,10.15124]
[1721106233019,2.8807,3471.4,3470.7,2.88124]
[1721106233219,4.38659716,3471.4,3470.7,2.88124]
[1721106234347,4.38659716,3471.4,3470.5,5.18665]
[1721106234663,1.50742534,3471.3,3470.6,2.88133]
[1721106234952,4.38812534,3471.4,3470.7,0.806813]
[1721106235269,1.50742534,3471.3,3470.7,0.806813]
[1721106236453,4.38818534,3471.3,3470.7,0.806813]
[1721106236755,4.38818534,3471.3,3470.3,5.27583]
[1721106236756,3.97842534,3471.2,3470.3,5.27583]
[1721106236963,2.88095,3471.1,3470.4,3.0]
[1721106237367,2.88102,3471.0,3470.4,3.0]
[1721106237562,2.88102,3471.0,3470.3,5.3943]
[1721106238667,2.88102,3471.0,3470.3,8.27588]
[1721106238857,6.86057893,3471.2,3470.3,8.27588]
[1721106239228,2.88095,3471.1,3470.3,8.27588]
[1721106239538,2.88095,3471.1,3470.4,2.8815]
[1721106239864,1.50868893,3471.2,3470.6,2.489]
[1721106240042,4.38944893,3471.3,3470.6,5.37028]
[1721106240247,2.88076,3471.3,3470.6,5.37028]
[1721106240747,2.88061,3471.5,3470.7,2.88124]
[1721106240950,4.38953695,3471.4,3470.8,0.77944924]
[1721106241171,4.38953695,3471.4,3470.7,2.88124]
[1721106242659,1.50885695,3471.4,3470.7,2.88124]
[1721106243265,4.38953695,3471.4,3470.7,2.88124]
[1721106243629,2.88068,3471.4,3470.7,2.88124]
[1721106243862,2.66135231,3471.3,3470.7,2.88124]
[1721106244076,1.50937381,3471.3,3470.7,4.006406]
[1721106244744,1.50937381,3471.2,3470.7,4.006406]
[1721106246243,2.88094,3471.1,3470.6,2.489]
[1721106246430,2.88094,3471.1,3470.4,5.2539]
[1721106246633,4.39031381,3471.1,3470.4,5.2539]
[1721106246873,4.39031381,3471.1,3470.4,8.13541]
[1721106247028,4.39066268,3471.1,3470.5,3.0]
[1721106247546,2.88102,3471.0,3470.5,3.0]
[1721106247866,2.88102,3471.0,3470.4,2.2539]
[1721106249181,1.50979212,3471.1,3470.4,5.1354]
[1721106249340,1.50979212,3471.2,3470.6,2.8813]
[1721106249532,1.50979212,3471.3,3470.6,2.8813]
[1721106249735,1.50979212,3471.2,3470.4,5.1354]